bitfinex-derivatives/quotes_ETHF0:USTF0_20251028
["timestamp","ask_amount","ask_price","bid_price","bid_amount"]
[1761621286130,13.2161,4086.1,4084.4,0.5508]
[1761621286425,1.69684018,4086.0,4085.1,0.5508]
[1761621286626,0.44063,4085.2,4085.1,0.5508]
[1761621286827,0.44063,4085.2,4085.1,1.1608]
[1761621287223,40.80186922,4085.2,4085.1,1.16331933]
[1761621287928,40.80186922,4085.2,4085.1,0.92221933]
[1761621288430,40.80186922,4085.2,4085.1,1.16331933]
[1761621289123,40.80186922,4085.2,4085.1,0.55331933]
[1761621289628,1.10164,4085.0,4083.6,0.5508]
[1761621289828,44.48894002,4085.2,4084.1,0.9197]
[1761621290023,0.4407,4084.6,4084.5,1.1523]
[1761621290331,0.4407,4084.6,4084.5,0.7834]
[1761621290534,0.44072,4084.4,4084.1,0.5508]
[1761621290731,0.41622195,4084.4,4084.2,0.5508]
[1761621291026,40.80186922,4085.2,4084.3,0.3689]
[1761621291227,0.44068,4084.7,4084.6,0.5508]
[1761621291424,41.90345922,4085.2,4084.1,0.00252587]
[1761621291629,41.90345922,4085.2,4083.1,0.5508]
[1761621291630,0.4408,4083.6,4083.1,0.5508]
[1761621291924,0.4408,4083.6,4083.5,0.2326]
[1761621292124,0.4408,4083.6,4083.5,0.7834]
[1761621292623,40.8,4083.6,4082.8,0.024493]
[1761621292823,3.6870708,4083.1,4080.0,0.2326]
[1761621293023,3.6870708,4080.9,4080.5,0.44113]
[1761621293225,0.44088,4082.9,4081.8,0.5508]
[1761621293538,0.44099,4081.9,4081.8,0.00266909]
[1761621293931,7.3741416,4082.0,4080.3,0.5508]
[1761621294233,7.3741416,4082.0,4079.0,0.5508]
[1761621294234,3.6870708,4080.6,4079.0,0.5508]
[1761621294430,3.6870708,4080.3,4079.2,0.44127]
[1761621294738,3.6870708,4081.2,4079.2,0.5508]
[1761621294925,3.6870708,4081.2,4079.9,0.5508]
[1761621295126,1.10263,4081.4,4079.2,0.00298498]
[1761621295327,3.6870708,4080.7,4079.7,0.5508]
[1761621295634,0.4288316,4080.8,4079.7,0.5508]
[1761621295930,0.44108,4081.1,4079.8,0.5508]
[1761621296130,0.19744119,4082.1,4079.2,0.00298498]
[1761621296131,3.6870708,4080.4,4079.2,0.00298498]
[1761621296326,3.6870708,4081.0,4079.2,0.55378498]
[1761621296528,11.02613,4081.4,4079.2,0.55378498]
[1761621296838,0.44116,4080.3,4079.2,0.55378498]
[1761621297334,3.6870708,4081.2,4077.8,0.46594303]
[1761621297335,3.6870708,4079.5,4077.8,0.46594303]
[1761621297540,3.6870708,4080.0,4078.3,0.5508]
[1761621297736,11.03016,4079.9,4078.3,0.5508]
[1761621298038,40.8,4078.5,4078.3,0.5508]
[1761621298239,40.8,4078.5,4077.7,3.6870708]
[1761621298240,40.8,4078.5,4074.0,1.75358332]
[1761621298436,1.10447,4074.5,4071.4,0.53148332]
[1761621298631,1.10447,4074.5,4071.4,0.00254128]
[1761621298632,0.44199,4072.6,4071.4,0.00254128]
[1761621298831,3.6870708,4072.2,4071.5,0.00648738]
[1761621299135,3.6870708,4072.2,4071.9,0.2326]
[1761621299335,0.19854376,4073.1,4071.9,0.2326]
[1761621299535,3.6870708,4074.1,4071.9,0.2326]
[1761621299536,40.8,4073.0,4072.0,0.00648738]
[1761621299840,2.39847068,4076.1,4072.0,0.00648738]
[1761621299841,3.6870708,4075.0,4074.4,0.2326]
[1761621300038,0.86231792,4076.9,4074.4,0.2326]
[1761621300245,1.10347,4078.2,4074.4,0.2326]
[1761621300246,3.6870708,4076.5,4074.4,0.2326]
[1761621300536,22.055,4078.0,4076.7,0.5508]
[1761621300739,40.8,4076.8,4076.7,0.5508]
[1761621301136,0.86231792,4080.0,4077.7,0.5508]
[1761621301332,3.6870708,4077.8,4077.6,0.2326]
[1761621301632,40.8,4077.7,4077.6,0.7834]
[1761621301837,40.8,4077.7,4077.6,0.2326]
[1761621302631,40.8,4077.7,4076.7,0.00297429]
[1761621302837,3.6870708,4077.3,4076.8,0.00648738]
[1761621303337,3.6870708,4077.3,4076.9,0.00648738]
[1761621303538,3.6870708,4077.3,4076.7,0.00297429]
[1761621303737,3.6870708,4077.5,4076.9,0.5508]
[1761621303934,40.8,4077.7,4077.1,0.5508]
[1761621304134,40.8,4077.7,4077.6,0.7834]
[1761621304440,3.6870708,4079.4,4077.9,0.9406]
[1761621304735,3.6870708,4079.4,4076.7,0.00297429]
[1761621304736,3.6870708,4078.9,4077.7,0.00648738]
[1761621304937,3.6870708,4078.1,4077.7,0.9406]
[1761621305143,3.6870708,4078.5,4077.7,0.94708738]
[1761621305445,3.6870708,4078.7,4077.9,0.9406]
[1761621305742,3.6870708,4078.3,4078.1,0.9406]
[1761621306237,4.1284508,4078.3,4078.1,0.9406]
[1761621306444,4.1283808,4078.9,4078.1,0.94708738]
[1761621306636,40.8,4078.8,4078.0,0.4414]
[1761621306834,3.6870708,4080.3,4079.0,0.9518]
[1761621307045,3.6870708,4080.3,4079.4,0.9518]
[1761621307241,3.6870708,4081.0,4079.6,0.9518]
[1761621307541,4.1281508,4081.0,4079.8,0.44121]
[1761621307734,3.6870708,4079.9,4079.8,0.00195815]
[1761621307940,0.00289796,4081.0,4080.0,1.347]
[1761621308133,0.00289796,4081.0,4080.1,0.95636351]
[1761621308335,0.00289796,4081.0,4080.1,1.39753351]
[1761621308536,0.00289796,4081.0,4080.3,0.9518]
[1761621308738,0.00289796,4081.0,4080.5,0.9518]
[1761621308940,0.00289796,4081.0,4080.7,0.9518]
[1761621309345,0.00289796,4081.0,4080.0,0.83639]
[1761621309346,0.00289796,4081.0,4080.9,0.9518]
[1761621309944,0.44096,4082.1,4081.2,0.3952]
[1761621310137,3.6870708,4082.9,4082.5,0.9518]
[1761621310441,0.44091,4082.6,4082.4,0.3952]
[1761621310644,0.43946599,4081.8,4081.3,0.9518]
[1761621310939,0.00283748,4081.8,4081.3,0.9518]
[1761621311137,40.8,4081.7,4081.3,0.9518]
[1761621311344,0.00283748,4081.8,4081.3,0.9518]
[1761621311836,0.00283748,4081.8,4081.2,0.3952]
[1761621312043,0.00283748,4081.8,4081.5,0.9518]
[1761621314246,3.6870708,4083.7,4082.2,0.9518]
[1761621314546,0.44094,4082.4,4082.2,0.9518]
[1761621314742,0.44091,4082.6,4082.2,0.9518]
[1761621314948,0.44093,4082.4,4082.2,0.9518]
[1761621315139,0.44402517,4082.4,4082.2,0.9518]
[1761621315943,1.10242,4082.1,4081.2,0.3952]
[1761621316152,0.44105,4081.4,4081.2,0.3952]
[1761621316345,3.6870708,4082.3,4081.2,0.3952]
[1761621316545,0.44096,4082.1,4081.2,0.83626]
[1761621316744,0.00309517,4082.4,4082.1,0.3952]
[1761621317448,0.44094,4082.3,4082.1,0.3952]
[1761621318150,0.60662963,4082.2,4082.1,0.3952]
[1761621318748,0.60662963,4082.2,4082.1,1.347]
[1761621319349,1.46894755,4082.2,4082.1,1.347]
[1761621319654,1.10241,4082.1,4081.6,0.9518]
[1761621319855,1.30331792,4081.7,4081.6,0.9518]
[1761621320048,0.441,4081.7,4081.6,0.9518]
[1761621320250,1.90994755,4081.7,4081.6,0.9518]
[1761621320444,1.46894755,4081.7,4081.6,0.9518]
[1761621320751,0.20706798,4081.7,4081.6,0.9518]
[1761621321054,0.44096,4082.1,4082.0,1.347]
[1761621321249,40.8,4082.3,4082.1,0.9518]
[1761621321651,0.022,4082.8,4082.4,0.44093]
[1761621321856,0.022,4082.8,4082.6,0.9518]
[1761621322058,40.822,4082.8,4082.6,0.9518]
[1761621322555,40.82431582,4082.8,4082.6,0.9518]
[1761621322754,40.82431582,4082.8,4082.6,0.4409]
[1761621323055,0.02431582,4082.8,4082.7,0.9518]
[1761621323254,0.02431582,4082.8,4082.7,0.95355005]
[1761621327755,1.29442068,4084.1,4083.7,0.9518]
[1761621327956,0.44071,4084.4,4084.3,0.9518]
[1761621328360,0.4407,4084.5,4084.3,0.9518]
[1761621328555,1.29442068,4084.9,4084.4,0.9518]
[1761621328860,0.44069,4084.6,4084.4,0.9518]
[1761621329157,1.29442068,4084.6,4084.4,0.9518]
[1761621329356,1.29442068,4084.7,4084.4,0.9518]
[1761621329562,0.4407,4084.6,4084.4,0.9518]
[1761621329750,0.44069,4084.6,4084.4,0.9518]
[1761621329953,40.8,4084.5,4084.4,0.9518]
[1761621330350,0.44071,4084.4,4084.2,0.3952]
[1761621330557,0.4408,4083.7,4083.1,0.44085]
[1761621330755,0.44082,4083.5,4082.7,0.00175005]
[1761621331259,0.00220105,4084.9,4083.4,12.12261]
[1761621331561,1.101,4087.4,4085.4,0.4406]
[1761621331858,1.10096,4087.5,4085.1,0.3952]
[1761621331859,0.2449,4085.9,4085.1,0.3952]
[1761621332052,0.9524,4086.3,4085.1,0.3952]
[1761621332053,0.44054,4086.1,4085.1,0.3952]
[1761621332254,0.2449,4085.5,4085.1,0.3952]
[1761621332454,0.2449,4085.4,4085.1,0.9518]
[1761621332655,0.00304621,4085.5,4085.4,0.9518]
[1761621333759,0.00304621,4085.5,4085.4,1.3924]
[1761621334061,0.00304621,4085.5,4085.4,0.9518]
[1761621336860,0.00304621,4085.5,4085.4,1.60281465]
[1761621337055,0.00304621,4085.5,4085.4,0.9518]
[1761621337260,0.00304621,4085.5,4085.4,1.60281465]
[1761621337561,40.8,4086.4,4086.3,1.4315]
[1761621338361,40.80234738,4086.4,4086.3,1.43350111]
[1761621340465,47.98778179,4086.4,4086.3,0.00200111]
[1761621341169,47.98778179,4086.4,4086.3,1.43350111]
[1761621341773,49.39438179,4086.4,4086.3,0.00200111]
[1761621342968,47.98778179,4086.4,4086.3,0.00200111]
[1761621343665,40.80234738,4086.4,4086.3,1.43350111]
[1761621343868,0.00234738,4086.4,4086.3,1.43350111]
[1761621344168,0.00234738,4086.4,4086.3,3.85212981]
[1761621344363,0.00234738,4086.4,4086.3,2.11609074]
[1761621344870,40.8,4087.4,4087.3,1.4315]
[1761621345071,40.8,4087.4,4087.3,2.11408963]
[1761621345270,0.022,4087.8,4087.7,1.4315]
[1761621345465,0.022,4087.8,4087.7,2.09439161]
[1761621345766,0.02456937,4087.8,4087.7,2.74581714]
[1761621346167,0.02456937,4087.8,4087.7,2.09439161]
[1761621349070,0.02456937,4087.8,4087.7,3.39546296]
[1761621349261,0.02456937,4087.8,4087.7,2.09439161]
[1761621350763,40.8,4088.7,4088.1,1.4315]
[1761621350970,1.84689,4088.3,4088.2,1.96504858]
[1761621351267,40.8,4088.7,4087.6,1.4315]
[1761621351268,0.44036,4087.7,4087.6,0.65156024]
[1761621351462,0.44034,4087.9,4087.7,1.4315]
[1761621351667,0.44036,4087.7,4087.5,1.4315]
[1761621351868,0.00239976,4087.9,4087.8,1.9812]
[1761621352068,0.00239976,4087.9,4087.8,3.6311]
[1761621352268,0.00239976,4087.9,4087.8,4.28266024]
[1761621352472,40.80239976,4087.9,4087.8,3.6311]
[1761621353071,0.24729976,4087.9,4087.5,1.4315]
[1761621353277,0.00239976,4087.9,4087.8,4.28274966]
[1761621353463,40.80239976,4087.9,4087.8,4.28274966]
[1761621353870,40.80239976,4087.9,4087.8,3.6311]
[1761621354966,40.80239976,4087.9,4087.8,3.0814]
[1761621355165,41.04729976,4087.9,4087.8,1.4315]
[1761621355777,41.04729976,4087.9,4087.8,0.65267912]
[1761621355973,41.48763976,4087.9,4087.5,1.4315]
[1761621356173,0.44036,4087.7,4087.5,1.4315]
[1761621356375,0.2449,4087.6,4087.5,2.4203]
[1761621358478,0.68527,4087.6,4087.5,2.4203]
[1761621358680,0.2449,4087.6,4087.5,2.4203]
[1761621359267,0.68527,4087.6,4087.5,2.4203]
[1761621359475,0.2449,4087.6,4087.5,2.4203]
[1761621360173,40.80239976,4087.9,4087.6,1.4315]
[1761621360374,0.2449,4087.7,4087.6,3.0814]
[1761621360679,0.68525,4087.7,4087.6,3.0814]
[1761621360873,3.40518,4087.5,4087.4,1.1343]
[1761621361177,0.2449,4087.5,4087.2,2.08651884]
[1761621361382,1.4066,4087.5,4086.8,1.4315]
[1761621361575,0.952,4086.6,4086.1,1.4315]
[1761621361873,0.2449,4086.4,4086.3,2.42230111]
[1761621362280,40.8,4086.5,4086.4,2.42169]
[1761621362582,0.44036,4087.7,4087.4,2.4203]
[1761621362777,0.65,4087.6,4087.4,1.6499]
[1761621362979,0.8949,4087.6,4087.5,3.0814]
[1761621363283,0.65,4087.6,4087.5,3.0814]
[1761621363483,41.45,4087.6,4087.5,3.0814]
[1761621365572,1.4964,4087.5,4087.2,1.0692]
[1761621365776,0.2449,4087.3,4087.2,1.0692]
[1761621365972,1.2586,4087.3,4087.2,1.0692]
[1761621366173,2.755,4087.3,4087.2,1.0692]
[1761621366577,3.6618,4087.3,4087.2,1.0692]
[1761621367885,1.5555,4087.2,4086.9,1.4534]
[1761621368186,0.44044,4086.9,4086.8,1.74671692]
[1761621368483,3.21234,4086.9,4086.7,1.74671692]
[1761621368676,2.527,4086.8,4086.5,3.20011692]
[1761621368885,1.10102,4087.3,4086.3,0.00200111]
[1761621368886,0.44048,4086.5,4086.3,1.74871803]
[1761621369074,1.2164,4086.4,4086.3,1.74871803]
[1761621369278,2.7719,4086.4,4086.3,0.00200111]
[1761621369484,3.2124,4086.4,4086.3,0.00200111]
[1761621370775,1.2164,4086.4,4086.3,0.00200111]
[1761621370981,1.5555,4087.3,4086.5,1.4534]
[1761621371181,1.5555,4087.8,4087.4,1.4534]
[1761621371384,1.5555,4087.8,4087.4,2.4462]
[1761621371385,0.44038,4087.5,4087.4,2.4462]
[1761621371681,0.44039,4087.4,4087.2,2.5144]
[1761621371884,1.5555,4087.7,4087.3,1.4534]
[1761621372184,0.00239976,4087.9,4087.5,2.4462]
[1761621372486,0.44038,4087.5,4087.3,1.4534]
[1761621372683,0.44038,4087.5,4087.1,0.44041]
[1761621372881,0.2449,4087.3,4087.2,2.38521]
[1761621373281,43.44587,4087.6,4087.2,2.38521]
[1761621373579,0.2449,4087.3,4087.2,2.38521]
[1761621373881,0.2449,4087.5,4087.4,1.43319]
[1761621374083,41.89037,4087.6,4087.4,1.9448]
[1761621374388,1.5555,4087.2,4087.1,0.44042]
[1761621376186,1.5555,4087.2,4086.3,3.07100781]
[1761621376688,1.5555,4087.2,4087.1,0.44042]
[1761621377282,1.5555,4087.2,4087.1,0.44300071]
[1761621377784,0.6084,4087.3,4087.2,0.44041]
[1761621378180,2.1639,4087.3,4087.2,0.44041]
[1761621379589,2.1639,4087.3,4087.2,0.44242937]
[1761621380191,2.1639,4087.3,4086.3,0.71083788]
[1761621380488,2.1639,4087.3,4086.4,3.11179882]
[1761621380882,3.1354,4087.3,4087.2,0.44041]
[1761621381282,3.1354,4087.3,4087.2,0.44283494]
[1761621382289,1.5555,4087.2,4086.4,0.8790303]
[1761621382488,2.2055,4087.6,4087.5,0.44038]
[1761621382982,1.5555,4087.5,4087.0,6.12905592]
[1761621383181,1.5555,4087.5,4087.0,6.13192471]
[1761621383386,1.5555,4087.5,4087.4,0.44039]
[1761621383793,2.2055,4087.6,4087.5,0.44038]
[1761621384092,3.177,4087.6,4087.5,0.44038]
[1761621384591,1.5555,4087.1,4087.0,1.75940694]
[1761621384789,1.5555,4087.1,4087.0,0.44329879]
[1761621385693,1.5555,4087.5,4087.4,0.44039]
[1761621385991,1.5555,4087.5,4087.2,0.4404]
[1761621386183,1.5555,4087.5,4087.0,0.00286879]
[1761621386389,1.5555,4087.5,4086.4,4.3726168]
[1761621386588,1.5555,4087.5,4086.6,1.10118]
[1761621386793,1.5555,4087.5,4086.7,3.15904039]
[1761621387093,1.5555,4087.4,4087.2,0.44041]
[1761621387495,1.99589,4087.4,4087.2,0.00192539]
[1761621387692,1.5555,4087.3,4087.2,0.00192539]
[1761621388196,1.5555,4087.1,4086.7,1.10116]
[1761621388395,1.5555,4087.1,4087.0,0.44043]
[1761621389195,1.5555,4087.1,4087.0,0.44358466]
[1761621389796,1.5555,4087.1,4087.0,4.1314266]
[1761621390195,1.5555,4087.1,4087.0,2.43142659]
[1761621390396,1.5555,4087.1,4087.0,2.87185659]
[1761621391096,1.5555,4087.1,4087.0,2.8747931]
[1761621391401,0.6084,4087.2,4087.1,0.44042]
[1761621391890,2.1639,4087.2,4087.1,0.44042]
[1761621392296,1.5555,4087.1,4087.0,3.69077845]
[1761621392599,4.20802,4087.1,4087.0,0.00293651]
[1761621392796,4.20802,4087.1,4086.6,1.184]
[1761621392797,3.96316,4086.7,4086.6,1.184]
[1761621392993,1.5555,4086.0,4085.9,3.68784194]
[1761621393192,1.5555,4085.9,4085.7,5.88413376]
[1761621393393,1.5555,4085.9,4085.7,3.68784194]
[1761621393602,1.5555,4085.9,4085.7,4.12841194]
[1761621393901,1.5555,4085.9,4085.8,0.44056]
[1761621394102,1.5555,4085.9,4085.8,3.04316]
[1761621395395,1.5555,4085.9,4085.8,2.6026]
[1761621395600,1.5555,4085.9,4085.8,1.44316]
[1761621396100,1.5555,4085.9,4085.8,1.75694616]
[1761621396504,1.5555,4085.9,4085.8,0.44056]
[1761621398601,2.2726,4086.5,4086.1,1.10132]
[1761621398905,2.5175,4086.4,4086.3,4.12835194]
[1761621399307,2.2726,4087.3,4087.1,0.44042]
[1761621399597,2.881,4087.2,4087.1,4.12826194]
[1761621402609,5.4529,4087.2,4087.1,3.68784194]
[1761621402904,2.71302,4087.1,4086.8,1.75637812]
[1761621403203,3.4252,4087.2,4086.0,3.05656584]
[1761621403204,2.5719,4086.9,4086.7,0.44046]
[1761621403400,3.8376,4086.8,4086.7,0.44046]
[1761621403599,4.0825,4086.8,4086.7,0.44046]
[1761621403804,3.8376,4086.8,4086.7,4.12830194]
[1761621404001,2.2726,4086.8,4086.7,4.12830194]
[1761621404196,4.8445,4086.8,4086.7,4.12830194]
[1761621404403,2.2726,4086.8,4086.7,4.12830194]
[1761621405202,3.8376,4086.8,4086.7,0.44046]
[1761621405907,2.2726,4086.8,4086.7,0.44046]
[1761621406610,2.2726,4086.8,4086.7,2.19683812]
[1761621406803,2.2726,4086.8,4086.7,0.44046]
[1761621407000,2.1734,4087.2,4087.1,0.44042]
[1761621408612,0.6084,4087.2,4087.1,0.44042]
[1761621408914,3.1803,4087.2,4087.1,0.44042]
[1761621409211,5.4529,4087.2,4087.1,2.1970486]
[1761621409811,5.4529,4087.2,4087.1,0.44042]
[1761621410017,4.8445,4086.8,4086.7,2.19629182]
[1761621410311,5.0894,4086.8,4086.7,0.44046]
[1761621410506,5.0894,4086.8,4086.7,1.75671913]
[1761621410701,5.7344,4086.6,4086.4,1.75671913]
[1761621410907,2.2726,4086.5,4086.4,0.4405]
[1761621411210,2.2726,4086.5,4086.4,3.68784194]
[1761621411409,3.8376,4086.5,4086.4,3.68784194]
[1761621412003,4.8445,4086.5,4086.4,3.68784194]
[1761621412607,5.0894,4086.5,4086.4,3.68784194]
[1761621413407,5.0894,4086.5,4086.4,5.8852272]
[1761621414209,5.0894,4086.5,4086.4,5.4447272]
[1761621414707,5.0894,4086.5,4086.4,1.75688526]
[1761621417014,5.52989,4086.5,4086.4,1.75688526]
[1761621417218,2.2726,4086.3,4086.1,1.75688526]
[1761621417516,4.8445,4086.2,4086.1,1.75688526]
[1761621417706,5.0894,4086.2,4086.1,1.75688526]
[1761621418705,3.25732,4086.2,4085.9,1.75688526]
[1761621418912,4.8445,4085.8,4085.7,2.20042614]
[1761621420312,2.2726,4085.8,4085.7,0.44354088]
[1761621420512,3.1625,4086.0,4085.9,0.44055]
[1761621420714,3.1625,4086.0,4085.9,4.12839194]
[1761621420919,5.9793,4086.0,4085.9,4.12839194]
[1761621421120,4.8445,4085.8,4085.7,1.75995796]
[1761621421313,4.8445,4085.8,4085.7,0.00297088]
[1761621421314,5.0894,4085.8,4085.7,0.00297088]
[1761621422411,5.0894,4085.8,4085.7,1.32056785]
[1761621422816,5.0894,4085.8,4085.7,0.00297088]
[1761621423218,5.0894,4085.8,4085.7,1.32018115]
[1761621423620,0.8899,4086.0,4084.3,2.19629182]
[1761621423621,2.5719,4084.5,4084.3,2.19629182]
[1761621423814,2.2726,4084.1,4083.5,0.4408]
[1761621424013,1.565,4083.4,4083.3,2.04552]
[1761621424320,3.6898,4083.4,4083.3,5.16363723]
[1761621424616,3.6921689,4083.4,4083.3,1.60658984]
[1761621425011,5.2405689,4083.4,4083.3,0.00188984]
[1761621425222,5.4854689,4083.4,4083.3,0.00188984]
[1761621425818,5.4854689,4083.4,4083.3,5.10323178]
[1761621426019,5.4854689,4083.4,4083.3,0.00188984]
[1761621431122,0.0023689,4083.4,4083.3,5.35538984]
[1761621434026,3.6336689,4083.4,4083.3,3.14938984]
[1761621434927,3.6336689,4083.4,4083.3,5.35538984]
[1761621435929,0.0023689,4083.4,4083.3,5.35538984]
[1761621436332,2.1993,4084.3,4084.2,3.58823]
[1761621436526,1.432,4085.0,4084.9,1.5744]
[1761621436726,5.3739,4085.0,4084.7,0.44068]
[1761621436920,6.2328,4084.8,4084.7,2.01508]
[1761621437125,3.8762,4084.8,4084.7,5.79418]
[1761621437422,1.432,4084.6,4084.5,0.44069]
[1761621437629,5.129,4084.6,4084.5,0.44069]
[1761621437825,5.129,4084.6,4084.5,2.01509]
[1761621438132,4.49205852,4084.8,4084.7,3.58818]
[1761621438518,3.87805852,4084.8,4084.7,5.79418]
[1761621438719,3.63315852,4084.8,4084.7,5.79418]
[1761621439225,2.1993,4084.7,4084.5,0.44069]
[1761621439430,5.129,4084.0,4083.9,2.01516]
[1761621439729,5.129,4083.8,4083.7,0.44079]
[1761621440126,5.129,4083.8,4083.7,2.01519]
[1761621441026,5.3739,4083.8,4083.7,0.44079]
[1761621441434,5.3739,4083.8,4083.7,2.01519]
[1761621441734,5.3739,4083.8,4083.7,0.44079]
[1761621442529,5.3739,4083.8,4083.7,2.01519]
[1761621443038,5.3739,4083.8,4083.7,0.44079]
[1761621443330,5.3739,4083.8,4083.3,1.10395984]
[1761621443331,5.129,4083.7,4083.6,0.4408]
[1761621443527,5.3739,4083.7,4083.6,0.4408]
[1761621443927,5.3739,4083.7,4083.6,2.0152]
[1761621445333,5.9879,4083.6,4083.5,4.12864194]
[1761621446232,5.9879,4083.6,4083.5,5.70304194]
[1761621446539,5.9879,4083.6,4083.5,4.12865194]
[1761621446832,5.9879,4083.6,4083.5,5.70305194]
[1761621447033,3.6313,4083.6,4083.5,5.79431]
[1761621449141,3.6313,4083.6,4083.5,7.1053875]
[1761621450233,5.129,4083.6,4083.5,1.7518875]
[1761621450444,5.129,4082.9,4082.1,1.74377792]
[1761621450734,2.1993,4083.4,4082.8,3.171993]
[1761621450939,5.129,4083.4,4083.3,3.1475]
[1761621451335,5.3739,4083.4,4083.2,3.68784194]
[1761621451534,5.3739,4083.3,4083.2,3.69089158]
[1761621451739,5.3739,4083.3,4083.2,0.00304964]
[1761621459645,5.81473,4083.3,4083.2,0.00304964]
[1761621466744,2.1397,4081.7,4081.6,1.74377792]
[1761621466949,1.4163,4081.0,4080.9,5.40929]
[1761621467252,2.1397,4081.2,4080.7,2.1857]
[1761621467253,5.0318,4081.2,4080.7,2.1857]
[1761621467551,3.556,4080.8,4080.7,5.40931]
[1761621467748,5.03376537,4080.8,4080.7,2.78534305]
[1761621467948,5.03376537,4080.8,4080.7,1.32314305]
[1761621468149,5.03376537,4080.8,4080.7,0.00284305]
[1761621468953,5.27866537,4080.8,4080.7,0.00284305]
[1761621469750,5.03376537,4080.8,4080.7,2.78534305]
[1761621470852,1.4163,4081.2,4080.8,2.1857]
[1761621471049,42.9397,4081.4,4081.2,2.1857]
[1761621471350,42.9397,4081.4,4080.7,5.69067811]
[1761621471351,42.9397,4081.4,4081.3,2.7825]
[1761621472049,5.0335515,4081.4,4081.3,2.7825]
[1761621472247,5.0335515,4081.4,4081.3,1.3203]
[1761621472448,0.0017515,4081.4,4081.3,4.9682]
[1761621472648,0.0017515,4081.4,4081.3,9.34173382]
[1761621473052,0.0017515,4081.4,4081.3,12.47735922]
[1761621473356,5.0318,4082.2,4082.1,1.3203]
[1761621474248,5.03493337,4082.2,4082.1,1.3203]
[1761621474453,5.03493337,4082.2,4082.1,4.9682]
[1761621474653,5.03493337,4082.2,4082.1,2.7825]
[1761621475060,0.00313337,4082.2,4082.1,4.9682]
[1761621475457,5.03493337,4082.2,4082.0,0.44097]
[1761621475750,5.0318,4082.1,4082.0,0.44097]
[1761621475966,5.0318,4082.1,4082.0,5.40917]
[1761621476262,0.00313337,4082.2,4082.1,4.9682]
[1761621476263,3.55913337,4082.2,4082.1,4.9682]
[1761621476455,5.03493337,4082.2,4082.1,4.9682]
[1761621477253,1.41943337,4082.2,4082.1,4.9682]
[1761621477459,0.00313337,4082.2,4082.1,4.9682]
[1761621478348,0.00313337,4082.2,4082.1,5.40916]
[1761621479156,3.556,4083.4,4082.9,2.1857]
[1761621479350,5.0318,4083.4,4083.3,2.7825]
[1761621479555,5.0318,4083.4,4083.3,0.44083]
[1761621479757,5.2767,4083.4,4083.3,0.44083]
[1761621480054,5.2767,4083.4,4083.3,1.76113]
[1761621480254,5.2789153,4083.4,4083.3,5.40903]
[1761621480857,5.0340153,4083.4,4083.3,5.40903]
[1761621481058,5.2789153,4083.4,4083.0,1.315072]
[1761621481363,5.2767,4083.2,4083.1,3.076222]
[1761621482560,5.0318,4083.1,4083.0,1.315072]
[1761621482759,5.8904,4083.0,4082.9,0.44087]
[1761621482962,5.8904,4083.0,4082.9,1.755942]
[1761621483163,6.1353,4083.0,4082.9,3.076242]
[1761621483761,5.2767,4083.0,4082.9,6.724142]
[1761621485965,6.0746,4083.0,4082.9,1.755942]
[1761621486167,6.0746,4083.0,4082.9,0.44087]
[1761621486361,2.6214,4082.9,4082.7,1.315072]
[1761621486562,4.4213,4082.6,4082.5,0.44092]
[1761621486962,4.6662,4082.6,4082.5,0.44092]
[1761621487463,4.6662,4082.6,4082.5,3.000292]
[1761621487862,4.4213,4082.6,4082.5,6.005792]
[1761621488364,4.4213,4082.6,4082.5,4.218892]
[1761621488562,4.6662,4082.6,4082.5,1.755992]
[1761621489058,4.6662,4082.6,4082.4,1.315072]
[1761621489364,5.1218,4082.0,4081.9,1.315072]
[1761621489561,1.7999,4081.8,4081.7,1.315072]
[1761621489756,4.3358,4081.8,4081.7,1.315072]
[1761621489968,4.5807,4081.8,4081.7,1.315072]
[1761621490167,2.7808,4081.8,4081.7,1.315072]
[1761621490472,3.3219,4081.5,4081.4,1.315072]
[1761621490669,5.3667,4081.5,4081.4,1.315072]
[1761621490976,5.1218,4081.5,4081.4,2.559372]
[1761621491164,3.033,4081.5,4081.4,4.2498]
[1761621491469,3.033,4081.5,4081.4,5.56523249]
[1761621492564,0.786,4082.0,4081.4,6.00626249]
[1761621492765,4.3358,4082.3,4082.2,1.68525]
[1761621493165,4.5807,4082.3,4082.2,1.68525]
[1761621493566,4.5807,4082.3,4082.2,0.44095]
[1761621493760,4.5807,4082.3,4081.8,4.20481249]
[1761621493761,1.7999,4082.8,4082.7,1.2443]
[1761621494075,4.3358,4082.8,4082.7,1.68519]
[1761621494367,4.5807,4082.8,4082.7,1.68519]
[1761621495665,4.5807,4082.8,4082.7,1.2443]
[1761621495866,4.5807,4082.8,4082.7,1.68519]
[1761621496267,4.5807,4082.8,4082.7,4.69069]
[1761621496466,4.3358,4082.8,4082.7,4.69069]
[1761621497571,4.3358,4082.8,4082.7,2.90379]
[1761621497772,1.2331,4082.8,4082.7,4.69069]
[1761621497975,42.5999,4083.3,4083.2,4.69064]
[1761621498170,4.5807,4083.3,4083.2,2.90374]
[1761621498380,0.2449,4083.3,4083.2,4.69064]
[1761621498672,3.2779,4083.3,4083.2,4.69064]
[1761621499269,4.5807,4083.3,4083.2,6.00584877]
[1761621499478,4.5807,4083.3,4083.2,4.21894877]
[1761621499767,4.3358,4083.3,4083.2,6.00584877]
[1761621500070,3.0352153,4083.4,4083.3,4.69063]
[1761621500372,4.3380153,4083.4,4083.3,6.00726142]
[1761621500573,4.3380153,4083.4,4083.3,4.22036142]
[1761621500985,4.3380153,4083.4,4083.3,6.00726142]
[1761621501276,0.0022153,4083.4,4083.3,6.00726142]
[1761621501471,0.0022153,4083.4,4083.3,6.43440792]
[1761621502471,3.0352153,4083.4,4083.3,6.43440792]
[1761621503371,0.0022153,4083.4,4083.3,9.61280726]
[1761621503572,3.3219,4084.5,4084.4,1.68501]
[1761621503781,3.3219,4084.5,4084.1,2.56120676]